Cogmind - Beta 13 @@@ ROGUE MODE // 2024.05.07 @ 18:53:10 Player: Origaki Result: Destroyed by S-27 Virus with Autogun Performance ------------- Evolutions (5) 2500 Regions Visited (12) 2400 Robots Destroyed (11) 55 Value Destroyed (333) 333 Prototype IDs (1) 20 Alien Tech Used (0) 0 Bonus (0) 0 TOTAL SCORE: 5308 Bonus ------- None Cogmind --------- Core Integrity 0/1000 Matter 11/300 Energy 98/100 System Corruption 2% Temperature Cool (0) Movement Core (50) Location -5/Factory Parts ------- > --- POWER (1) -------- (None) > --- PROPULSION (5) --- (None) > --- UTILITY (8) ------ (None) > --- WEAPON (3) ------- (None) > --- INVENTORY (5) ---- Backup Power III Weight Redist. System Improved Trap Scanner Makeshift ECM Suite Improved Light Armor Plating Peak State ------------ > --- POWER ------------ Makeshift Power Source > --- PROPULSION ------- Makeshift Leg Makeshift Leg Makeshift Leg > --- UTILITY ---------- Advanced Weight Redist. System Makeshift ECM Suite Improved Reaction Control System > --- WEAPON ----------- Mini Assault Cannon Mini Assault Cannon > --- INVENTORY -------- Backup Power III [Rating: 37] Favorites ----------- Power Ion Engine Engine Ion Engine Propulsion Aluminum Leg Leg Aluminum Leg Wheel Compact Wheel Hover Unit Backup Propulsion III Flight Unit VTOL Module Utility Small Storage Unit Device Drone Bay Storage Small Storage Unit Processor Signal Interpreter Hackware System Shield Protection Backup Plating III Weapon Assault Rifle Energy Gun Particle Gun Ballistic Gun Assault Rifle Ballistic Cannon Mini Assault Cannon Launcher Grenade Launcher Build | -11 -10 -10 -9 -9 -8 -7 -7 -7 -6 -6 -6 -5 ------- Run | Yrd Mat Min Mat Sto Mat Fac Was Fac Fac Low Low Fac Slots Evolved 10 | . . . 2 . 2 2 . . 2 . . 2 Power . | . . . . . . . . . . . . . Propulsion 3 | . . . 1 . 1 . . . 1 . . . Utility 6 | . . . 1 . 1 2 . . . . . 2 Weapon 1 | . . . . . . . . . 1 . . . Parts Attached 52 | 6 2 3 3 6 10 6 . 6 . 10 . . Power 6 | 1 . 1 1 1 1 . . . . 1 . . Engine 6 | 1 . 1 1 1 1 . . . . 1 . . Core . | . . . . . . . . . . . . . Reactor . | . . . . . . . . . . . . . Propulsion 16 | 2 . 1 1 1 3 2 . 3 . 3 . . Treads . | . . . . . . . . . . . . . Leg 9 | 2 . 1 . 1 . 1 . 1 . 3 . . Wheel 3 | . . . 1 . 1 1 . . . . . . Hover . | . . . . . . . . . . . . . Flight 4 | . . . . . 2 . . 2 . . . . Utility 19 | 1 1 . . 2 5 4 . 2 . 4 . . Device 14 | . . . . 2 4 2 . 2 . 4 . . Storage 2 | 1 . . . . . 1 . . . . . . Processor 1 | . 1 . . . . . . . . . . . Hackware 1 | . . . . . 1 . . . . . . . Protection 1 | . . . . . . 1 . . . . . . Artifact . | . . . . . . . . . . . . . Weapon 11 | 2 1 1 1 2 1 . . 1 . 2 . . Energy Gun 3 | . . . . 2 1 . . . . . . . Energy Cannon . | . . . . . . . . . . . . . Ballistic Gun 3 | 2 . . 1 . . . . . . . . . Ballistic Cannon 3 | . . . . . . . . 1 . 2 . . Launcher 2 | . 1 1 . . . . . . . . . . Special Weapon . | . . . . . . . . . . . . . Impact Weapon . | . . . . . . . . . . . . . Slashing Weapon . | . . . . . . . . . . . . . Piercing Weapon . | . . . . . . . . . . . . . Special Melee Weapon . | . . . . . . . . . . . . . Unidentified Prototypes 1 | . . . . . . . . 1 . . . . Parts Lost 32 | . . 5 3 4 4 . 3 8 . 5 . . Power 5 | . . 1 1 . 2 . . . . 1 . . Propulsion 11 | . . 1 1 2 . . 1 4 . 2 . . Utility 11 | . . 1 . 1 1 . 2 4 . 2 . . Weapon 5 | . . 2 1 1 1 . . . . . . . Highest Loss Streak 7 | . . 5 3 2 1 . 3 7 . 4 . . To Critical Strikes . | . . . . . . . . . . . . . Average Slot Usage (%) 41 | . 97 80 57 47 34 38 17 30 . 16 14 . Engine 5 | . 14 9 8 8 7 . . 2 . . . . Leg 8 | . 28 23 17 4 . 1 2 . . 4 4 . Wheel 1 | . . . 2 3 4 4 . . . . . . Device 5 | . . . . 13 10 15 9 7 . 6 . . Storage 4 | . 14 14 11 4 . 5 2 . . . . . Processor 1 | . 12 7 . . . . . . . . . . Protection 1 | . . . . . . 4 2 12 . . . . Energy Gun 1 | . . . . 11 1 . . . . . . . Ballistic Gun 5 | . 18 14 18 3 . . . . . . . . Ballistic Cannon 1 | . . . . . . . . . . 4 9 . Launcher 1 | . 9 11 . . . . . . . . . . Naked Turns 596 | . . . . 111 . . 69 33 45 37 43 258 Heaviest Build 22 | 11 13 13 13 21 19 13 13 7 . 22 8 . Greatest Support 60 | 20 20 20 20 10 16 16 13 20 3 60 20 3 Greatest Overweight (x) 6 | 1 . . 1 6 1 . 3 . . 2 . . Average Overweight (x) . | . . . . . . . . . . . . . Largest Inventory Capacity 8 | 8 8 8 8 8 5 8 8 5 5 5 5 5 Average Capacity 6 | 7 8 8 8 6 5 7 6 5 5 5 5 5 Most Carried 8 | 2 8 7 3 7 5 8 7 5 5 5 2 5 Average Carried 4 | 1 6 6 3 5 2 6 5 4 4 3 2 4 Final Capacity 8 | 8 8 8 8 5 5 8 5 5 5 5 5 5 Final Carried 8 | 2 8 4 3 5 3 7 5 4 5 1 2 5 Class Distribution -------------------- 90% | Mutant 7% | Infiltrator-Mutant Dominant Class ---------------- Mutant | -10/Materials Mutant | -10/Mines Mutant | -9/Materials Mutant | -9/Storage Mutant | -8/Materials Infiltrator-Mutant | -7/Factory Mutant | -7/Waste Mutant | -7/Factory Mutant | -6/Factory Mutant | -6/Lower Caves Mutant | -6/Lower Caves Mutant | -5/Factory Resources | -11 -10 -10 -9 -9 -8 -7 -7 -7 -6 -6 -6 -5 ----------- Run | Yrd Mat Min Mat Sto Mat Fac Was Fac Fac Low Low Fac Matter Collected 676 | 222 58 100 36 65 . . . . . 195 . . Remotely 65 | . . . . 65 . . . . . . . . Salvage Created 429 | . 81 77 36 65 . . . 43 . 127 . . Parts 19 | . 9 3 2 2 . . . 3 . . . . Haulers Intercepted . | . . . . . . . . . . . . . Recyclers Shooed . | . . . . . . . . . . . . . Parts Field Recycled . | . . . . . . . . . . . . . Retrieved Matter . | . . . . . . . . . . . . . Parts Self-Destructed 1 | . . . . . . . . . . . 1 . Prevented . | . . . . . . . . . . . . . Kills | -11 -10 -10 -9 -9 -8 -7 -7 -7 -6 -6 -6 -5 ------- Run | Yrd Mat Min Mat Sto Mat Fac Was Fac Fac Low Low Fac Combat Hostiles Destroyed 20 | . 5 10 1 2 . . . 2 . . . . Guns 3 | . . . 1 2 . . . . . . . . Cannons 1 | . . . . . . . . 1 . . . . AOE 16 | . 5 10 . . . . . 1 . . . . Classes Destroyed 5 | . 2 2 . . . . . 1 . . . . Recycler 1 | . . 1 . . . . . . . . . . Swarmer 4 | . 3 . . . . . . 1 . . . . Grunt 5 | . 2 . 1 2 . . . . . . . . Programmer 1 | . . . . . . . . 1 . . . . Assembled 10 | . . 10 . . . . . . . . . . Best Kill Streak 11 | . 5 11 1 2 . . . 2 . . . . Combat Bots Only 10 | . 5 10 1 2 . . . 2 . . . . Max Kills in Single Turn 4 | . 2 4 1 1 . . . 1 . . . . Gunslinging . | . . . . . . . . . . . . . Exploded 4 | . 2 4 . . . . . 1 . . . . Melee . | . . . . . . . . . . . . . Uniques/NPCs Destroyed . | . . . . . . . . . . . . . Combat | -11 -10 -10 -9 -9 -8 -7 -7 -7 -6 -6 -6 -5 -------- Run | Yrd Mat Min Mat Sto Mat Fac Was Fac Fac Low Low Fac Hostile Shots Fired 535 | . 8 35 65 46 49 . 4 131 . 58 38 101 Missed 214 | . 6 14 19 20 18 . 1 54 . 19 21 42 Damage Taken 5099 | . 44 731 520 327 466 . 129 1030 . 596 249 1007 Core 2698 | . . 211 145 218 183 . 89 419 . 190 236 1007 Absorbed by Shields . | . . . . . . . . . . . . . Core Remaining (%) 44 | 100 . 15 . 9 66 . . 27 . . 49 . Volleys Fired 55 | . 5 10 7 7 2 . . 4 . 20 . . Largest 2 | . 1 2 1 2 1 . . 1 . 2 . . Hottest 96 | . 30 50 20 85 40 . . 48 . 96 . . Shots Fired 70 | . 5 13 7 8 2 . . 4 . 31 . . Gun 23 | . . 6 7 8 2 . . . . . . . Cannon 35 | . . . . . . . . 4 . 31 . . Launcher 12 | . 5 7 . . . . . . . . . . Special . | . . . . . . . . . . . . . Kinetic 49 | . . 6 7 1 . . . 4 . 31 . . Thermal 7 | . . . . 7 . . . . . . . . Explosive 12 | . 5 7 . . . . . . . . . . Electromagnetic 2 | . . . . . 2 . . . . . . . Robot Hit Streak 12 | . . 3 5 12 . . . 1 . 7 . . Robot Miss Streak 5 | . . 2 1 . 2 . . 5 . 5 . . Penetration Max . | . . . . . . . . . . . . . Secondary Targets . | . . . . . . . . . . . . . Shots Hit Robots 37 | . . 3 6 7 . . . 1 . 20 . . Core Hits 42 | . 6 24 2 3 . . . 2 . 5 . . Critical Kills . | . . . . . . . . . . . . . Critical Parts Destroyed . | . . . . . . . . . . . . . Critical Strikes 1 | . . . . 1 . . . . . . . . Burn 1 | . . . . 1 . . . . . . . . Melee Attacks . | . . . . . . . . . . . . . Impact . | . . . . . . . . . . . . . Slashing . | . . . . . . . . . . . . . Piercing . | . . . . . . . . . . . . . Sneak Attacks . | . . . . . . . . . . . . . Combat Hostiles . | . . . . . . . . . . . . . Follow-up Attacks . | . . . . . . . . . . . . . Damage Inflicted 1670 | . 175 598 49 114 . . . 291 . 428 . 15 Guns 192 | . . 34 44 114 . . . . . . . . Cannons 486 | . . . . . . . . 58 . 428 . . Explosions 972 | . 175 564 . . . . . 233 . . . . Melee . | . . . . . . . . . . . . . Ramming 20 | . . . 5 . . . . . . . . 15 Kinetic 564 | . . 34 44 . . . . 58 . 428 . . Thermal 347 | . . . . 114 . . . 233 . . . . Explosive 739 | . 175 564 . . . . . . . . . . Electromagnetic . | . . . . . . . . . . . . . Impact . | . . . . . . . . . . . . . Slashing . | . . . . . . . . . . . . . Piercing . | . . . . . . . . . . . . . Highest Corruption 12 | . . 12 . . . . . . . . . 2 Average Corruption 5 | . . 12 . . . . . . . . . 2 Corruption Purged . | . . . . . . . . . . . . . Corruption Blocked . | . . . . . . . . . . . . . Effects 2 | . . 2 . . . . . . . . . . Energy Discharges 1 | . . 1 . . . . . . . . . . Weapon Failures 1 | . . 1 . . . . . . . . . . Overload Shots . | . . . . . . . . . . . . . Overflow Damage 133 | . 35 . . . . . . 63 . 35 . . Projectiles 35 | . . . . . . . . . . 35 . . Explosions 98 | . 35 . . . . . . 63 . . . . Melee . | . . . . . . . . . . . . . Knockbacks 7 | . . . . . . . . 1 . 6 . . Impact . | . . . . . . . . . . . . . Kinetic 7 | . . . . . . . . 1 . 6 . . Secondary . | . . . . . . . . . . . . . Self-Inflicted Damage 40 | . 28 3 2 . . . . . . . . 7 Shots 2 | . 1 1 . . . . . . . . . . Rammed 2 | . . . 1 . . . . . . . . 1 Targets Rammed 2 | . . . 1 . . . . . . . . 1 Kicked . | . . . . . . . . . . . . . Crushed . | . . . . . . . . . . . . . Highest Temperature 141 | . . 6 4 141 1 . . 5 . 110 . . Average Temperature 57 | . . 6 4 72 1 . . 5 . 60 . . Received Heat Transfer 978 | . . 114 282 153 261 . . 159 . . . 9 Siege Activations . | . . . . . . . . . . . . . Robots Corrupted . | . . . . . . . . . . . . . Combat Hostiles . | . . . . . . . . . . . . . Parts Fried . | . . . . . . . . . . . . . Impact Corruptions . | . . . . . . . . . . . . . Robots Melted . | . . . . . . . . . . . . . Combat Hostiles . | . . . . . . . . . . . . . Parts Melted 2 | . . . . 2 . . . . . . . . Heat Transferred 433 | . . . . 333 . . . 100 . . . . Parts Sabotaged . | . . . . . . . . . . . . . Parts Stolen . | . . . . . . . . . . . . . Parts Stripped . | . . . . . . . . . . . . . Power Chain Reactions . | . . . . . . . . . . . . . Alert | -11 -10 -10 -9 -9 -8 -7 -7 -7 -6 -6 -6 -5 ------- Run | Yrd Mat Min Mat Sto Mat Fac Was Fac Fac Low Low Fac Peak Influence 266 | . 230 29 70 258 117 28 24 266 130 . . 260 Initial 115 | . . 11 2 29 37 28 9 10 115 . . 35 Average 74 | . 131 13 16 70 83 28 10 109 120 . . 104 Maximum Alert Level 1 | . 1 . . 1 . . . 1 . . . 1 Low Security (%) 85 | 100 41 100 100 97 100 100 100 89 100 . . 82 Level 1 14 | . 58 . . 2 . . . 10 . . . 17 Level 2 . | . . . . . . . . . . . . . Level 3 . | . . . . . . . . . . . . . Level 4 . | . . . . . . . . . . . . . Level 5 . | . . . . . . . . . . . . . High Security . | . . . . . . . . . . . . . Max Security . | . . . . . . . . . . . . . Squads Dispatched 13 | . 1 . 3 1 2 . . 3 . . . 3 Investigation 2 | . 1 . . . . . . 1 . . . . Extermination . | . . . . . . . . . . . . . Reinforcement 11 | . . . 3 1 2 . . 2 . . . 3 Assault . | . . . . . . . . . . . . . Garrison . | . . . . . . . . . . . . . Intercept . | . . . . . . . . . . . . . Searches Triggered . | . . . . . . . . . . . . . Construction Impeded . | . . . . . . . . . . . . . Haulers Reinforced . | . . . . . . . . . . . . . Active Scanning Responses . | . . . . . . . . . . . . . Cargo Convoy Interrupts . | . . . . . . . . . . . . . Stealth | -11 -10 -10 -9 -9 -8 -7 -7 -7 -6 -6 -6 -5 --------- Run | Yrd Mat Min Mat Sto Mat Fac Was Fac Fac Low Low Fac Distress Signals 7 | . 1 . 3 1 1 . . 1 . . . . Communications Jammed . | . . . . . . . . . . . . . Distress Signals . | . . . . . . . . . . . . . Times Spotted 138 | . 10 20 14 19 22 . 6 17 3 4 7 16 Peak Tracking Total 16 | . 4 16 8 9 9 . 6 7 3 2 7 11 Tactical Retreats 18 | . . . 1 5 5 . . 2 . 2 . 3 Traps | -11 -10 -10 -9 -9 -8 -7 -7 -7 -6 -6 -6 -5 ------- Run | Yrd Mat Min Mat Sto Mat Fac Was Fac Fac Low Low Fac Traps Triggered 4 | . 1 . . . . 1 . 1 . . . 1 Indirectly . | . . . . . . . . . . . . . Trap Hack Attempts . | . . . . . . . . . . . . . Triggered . | . . . . . . . . . . . . . Disarmed . | . . . . . . . . . . . . . Reprogrammed . | . . . . . . . . . . . . . Reused . | . . . . . . . . . . . . . Traps Extracted . | . . . . . . . . . . . . . Installed . | . . . . . . . . . . . . . Triggered . | . . . . . . . . . . . . . Machines | -11 -10 -10 -9 -9 -8 -7 -7 -7 -6 -6 -6 -5 ---------- Run | Yrd Mat Min Mat Sto Mat Fac Was Fac Fac Low Low Fac Machines Disabled 4 | . 1 . . . . . . 3 . . . . Max in Single Turn 3 | . 1 . . . . . . 3 . . . . Machines Repaired . | . . . . . . . . . . . . . Machines Dismantled . | . . . . . . . . . . . . . Machines Sabotaged . | . . . . . . . . . . . . . Overloaded Fab Kills . | . . . . . . . . . . . . . Hacking | -11 -10 -10 -9 -9 -8 -7 -7 -7 -6 -6 -6 -5 --------- Run | Yrd Mat Min Mat Sto Mat Fac Was Fac Fac Low Low Fac Machines Accessed 11 | . 1 . . 4 . . . 1 . 2 1 2 Terminals 5 | . 1 . . 3 . . . . . . . 1 Fabricators . | . . . . . . . . . . . . . Repair Stations 1 | . . . . . . . . 1 . . . . Recycling Units 2 | . . . . 1 . . . . . . . 1 Scanalyzers . | . . . . . . . . . . . . . Garrison Access . | . . . . . . . . . . . . . Total Hacks 27 | . 3 . . 13 . . . 4 . 2 1 4 Successful 12 | . 1 . . 5 . . . 2 . 2 1 1 Failed 15 | . 2 . . 8 . . . 2 . . . 3 Catastrophic 2 | . 1 . . 1 . . . . . . . . Database Lockouts . | . . . . . . . . . . . . . Manual . | . . . . . . . . . . . . . Terminals 15 | . 3 . . 10 . . . . . . . 2 Fabricators . | . . . . . . . . . . . . . Repair Stations 4 | . . . . . . . . 4 . . . . Recycling Units 5 | . . . . 3 . . . . . . . 2 Scanalyzers . | . . . . . . . . . . . . . Garrison Access . | . . . . . . . . . . . . . Terminal Hacks 7 | . 1 . . 3 . . . . . 2 1 . Record 1 | . . . . . . . . . . . 1 . Open Door 3 | . . . . 1 . . . . . 2 . . Alert Level 1 | . . . . 1 . . . . . . . . Locate Traps 1 | . . . . 1 . . . . . . . . Zone Layout 1 | . 1 . . . . . . . . . . . Fabricator Hacks . | . . . . . . . . . . . . . Repair Station Hacks 2 | . . . . . . . . 2 . . . . Scan Component 1 | . . . . . . . . 1 . . . . Refit 1 | . . . . . . . . 1 . . . . Recycling Unit Hacks 3 | . . . . 2 . . . . . . . 1 Report Inventory 1 | . . . . 1 . . . . . . . . Retrieve Matter 1 | . . . . . . . . . . . . 1 Retrieve Components 1 | . . . . 1 . . . . . . . . Scanalyzer . | . . . . . . . . . . . . . Garrison Access Hacks . | . . . . . . . . . . . . . Unauthorized Hacks . | . . . . . . . . . . . . . Terminals . | . . . . . . . . . . . . . Fabricators . | . . . . . . . . . . . . . Repair Stations . | . . . . . . . . . . . . . Recycling Units . | . . . . . . . . . . . . . Scanalyzers . | . . . . . . . . . . . . . Garrison Access . | . . . . . . . . . . . . . Data Cores Recovered . | . . . . . . . . . . . . . Used . | . . . . . . . . . . . . . Hacking Detections 8 | . 1 . . 4 . . . 1 . . . 2 Full Trace Events 2 | . . . . 1 . . . 1 . . . . Feedback Events . | . . . . . . . . . . . . . Feedback Blocked . | . . . . . . . . . . . . . Robot Schematics Acquired . | . . . . . . . . . . . . . Robots Built . | . . . . . . . . . . . . . Authchips . | . . . . . . . . . . . . . Time . | . . . . . . . . . . . . . Total Robot Build Rating . | . . . . . . . . . . . . . Part Schematics Acquired . | . . . . . . . . . . . . . Parts Built . | . . . . . . . . . . . . . Authchips . | . . . . . . . . . . . . . Time . | . . . . . . . . . . . . . Total Part Build Rating . | . . . . . . . . . . . . . Parts Repaired . | . . . . . . . . . . . . . Time . | . . . . . . . . . . . . . Parts Recycled . | . . . . . . . . . . . . . Recycled Matter . | . . . . . . . . . . . . . Retrieved Matter . | . . . . . . . . . . . . . Retrieved Components 3 | . . . . 3 . . . . . . . . Parts Scanalyzed . | . . . . . . . . . . . . . Part Schematics Acquired . | . . . . . . . . . . . . . Parts Damaged . | . . . . . . . . . . . . . Bothacking | -11 -10 -10 -9 -9 -8 -7 -7 -7 -6 -6 -6 -5 ------------ Run | Yrd Mat Min Mat Sto Mat Fac Was Fac Fac Low Low Fac Used RIF Installer . | . . . . . . . . . . . . . Robots Hacked . | . . . . . . . . . . . . . Non-combat . | . . . . . . . . . . . . . Combat . | . . . . . . . . . . . . . Robot Hacks Applied . | . . . . . . . . . . . . . Relay Couplers Released . | . . . . . . . . . . . . . Fabnet Peak Effective % . | . . . . . . . . . . . . . Robots Rewired . | . . . . . . . . . . . . . Allies Hacked . | . . . . . . . . . . . . . Hacks Repelled . | . . . . . . . . . . . . . Allies | -11 -10 -10 -9 -9 -8 -7 -7 -7 -6 -6 -6 -5 -------- Run | Yrd Mat Min Mat Sto Mat Fac Was Fac Fac Low Low Fac Total Allies 1 | . . . . . . . 1 . . . . . Largest Group 1 | . . . . . . . 1 . . . . . Highest-Rated Group 31 | . . . . . . . 31 . . . . . Highest-Rated Ally 31 | . . . . . . . 31 . . . . . Total Orders . | . . . . . . . . . . . . . Ally Attacks 15 | . . . . . . . 15 . . . . . Total Damage 236 | . . . . . . . 236 . . . . . Kills . | . . . . . . . . . . . . . Allies Corrupted . | . . . . . . . . . . . . . Allies Melted . | . . . . . . . . . . . . . Intel | -11 -10 -10 -9 -9 -8 -7 -7 -7 -6 -6 -6 -5 ------- Run | Yrd Mat Min Mat Sto Mat Fac Was Fac Fac Low Low Fac Robot Analysis Total . | . . . . . . . . . . . . . Derelict Logs Recovered 2 | . . . . . . . . . . 2 . . Drone Launches 12 | . . . . . 12 . . . . . . . Drone Recoveries 8 | . . . . . 8 . . . . . . . Exploration | -11 -10 -10 -9 -9 -8 -7 -7 -7 -6 -6 -6 -5 ------------- Run | Yrd Mat Min Mat Sto Mat Fac Was Fac Fac Low Low Fac Turns Passed 2866 | 60 422 61 295 403 240 202 117 239 45 369 155 258 Spaces Moved 3329 | 44 332 27 238 363 334 239 168 399 84 491 166 444 Core 1525 | 6 . . . 200 60 . 130 61 84 453 87 444 Treads . | . . . . . . . . . . . . . Legs 837 | 38 332 27 183 74 . 25 38 3 . 38 79 . Wheels 362 | . . . 55 89 94 124 . . . . . . Hover 74 | . . . . . . . . 74 . . . . Flight 531 | . . . . . 180 90 . 261 . . . . Fastest Speed 35 | 50 120 120 80 50 35 35 50 35 50 50 50 50 Average Speed 75 | 113 120 120 113 95 57 77 67 49 50 61 92 50 Slowest Speed 350 | 120 120 120 120 350 115 120 200 130 50 150 140 50 Overloaded Moves . | . . . . . . . . . . . . . Propulsion Burnouts . | . . . . . . . . . . . . . Robots Hopped 4 | . . . . . 4 . . . . . . . Cave-ins Triggered 1 | . . 1 . . . . . . . . . . Exploration Rate (%) 31 | 3 39 11 32 65 31 8 83 20 3 75 25 18 Regions Visited 12 Branch Regions 4 Pre-discovered Areas . | . . . . . . . . . . . . . Known Exits Taken 2 | . 1 1 . . . . . . . . . . Unknown Exits Taken 8 | 1 . . 1 1 1 . . 1 1 1 1 . Scrap Searched 2 | . . . . . . . . . . 2 . . Spaces Dug . | . . . . . . . . . . . . . Terrain Destroyed 73 | . 30 29 . . . . . 7 . 7 . . Melee . | . . . . . . . . . . . . . Projectile 7 | . . . . . . . . . . 7 . . AOE 66 | . 30 29 . . . . . 7 . . . . Terrain Rammed . | . . . . . . . . . . . . . Walls Destroyed . | . . . . . . . . . . . . . Machines Disabled . | . . . . . . . . . . . . . Actions | -11 -10 -10 -9 -9 -8 -7 -7 -7 -6 -6 -6 -5 --------- Run | Yrd Mat Min Mat Sto Mat Fac Was Fac Fac Low Low Fac Total 3610 | 51 350 42 257 411 376 258 171 438 86 524 166 480 Wait 124 | . 4 . 9 30 28 . . 18 . 3 . 32 Move 3310 | 43 331 26 237 362 325 239 167 398 83 490 165 444 Hop 4 | . . . . . 4 . . . . . . . Pick Up 37 | 2 7 1 . 4 3 9 2 4 2 . . 3 Fast Attach 24 | 6 1 . 1 5 3 1 . 2 . 5 . . Attach 23 | . . 3 1 1 5 5 . 3 . 5 . . Detach 7 | . . . . . 1 2 . 2 . 1 1 . Swap 5 | . 1 . 1 . 2 . . 1 . . . . Drop 19 | . 1 2 . 2 3 2 2 6 1 . . . Fire 55 | . 5 10 7 7 2 . . 4 . 20 . . Melee . | . . . . . . . . . . . . . Ram 2 | . . . 1 . . . . . . . . 1 Kick . | . . . . . . . . . . . . . Crush . | . . . . . . . . . . . . . Escape Stasis . | . . . . . . . . . . . . . Rewire . | . . . . . . . . . . . . . Trap . | . . . . . . . . . . . . . Miscellaneous . | . . . . . . . . . . . . . Route ------- -11/Scrapyard -10/Materials (discovered 2 exits: *Mat / *Min) -10/Mines -9/Materials -9/Storage -8/Materials -7/Factory -7/Waste -7/Factory -6/Factory -6/Lower Caves -6/Lower Caves -5/Factory (discovered 1 exit: Ext) History --------- Turn | Location | Event 5 | -11/Scrapyard | Discovered new exit (range 15) 61 | -11/Scrapyard | Entered Materials 240 | -10/Materials | Discovered new exit (range 11) 252 | -10/Materials | Identified exit to Materials 313 | -10/Materials | Build established: Mutant 468 | -10/Materials | Discovered new exit (range 9) 482 | -10/Materials | Identified exit to Mines 483 | -10/Materials | Entered Mines 484 | -10/Mines | Assembled infested the area 513 | -10/Mines | Crushed by falling debris 513 | -10/Mines | Core integrity fell below 50% 513 | -10/Mines | System corruption reached 10% 515 | -10/Mines | Discovered exit to Materials (range 6) 543 | -10/Mines | Destroyed 10 combat bots 544 | -10/Mines | Entered Materials 544 | -9/Materials | Evolved 2 slots: Propulsion x1, Utility x1 563 | -9/Materials | Lost 5 parts (1p1n1u2w) 799 | -9/Materials | Lost 3 parts (1p1n1w) 831 | -9/Materials | Discovered new exit (range 9) 839 | -9/Materials | Entered Storage 1124 | -9/Storage | Core integrity fell below 50% 1127 | -9/Storage | Released all parts (4) 1219 | -9/Storage | Core integrity fell below 20% 1233 | -9/Storage | Discovered new exit (range 16) 1242 | -9/Storage | Entered Materials 1242 | -8/Materials | Evolved 2 slots: Propulsion x1, Utility x1 1472 | -8/Materials | Discovered new exit (range 9) 1477 | -8/Materials | Lost 4 allies 1482 | -8/Materials | Entered Factory 1482 | -7/Factory | Evolved 2 slots: Utility x2 1684 | -7/Factory | Sucked down chute 1684 | -7/Factory | Entered Waste 1685 | -7/Waste | Met a frightened Derelict 1692 | -7/Waste | Spotted C-40 Crusher 1695 | -7/Waste | Spotted C-40 Crusher 1718 | -7/Waste | Spotted C-40 Crusher 1729 | -7/Waste | Crushed by Compactor (1 part destroyed, 1 dropped) 1732 | -7/Waste | Crushed by Compactor (1 part destroyed, 2 dropped) 1732 | -7/Waste | Crushed by Compactor (1 part destroyed) 1739 | -7/Waste | Spotted C-40 Crusher 1762 | -7/Waste | Spotted C-40 Crusher 1763 | -7/Waste | Lost 3 parts (1n2u) 1765 | -7/Waste | Spotted C-40 Crusher 1791 | -7/Waste | Discovered new exit (range 11) 1801 | -7/Waste | Entered Factory 2027 | -7/Factory | Core integrity fell below 50% 2032 | -7/Factory | Discovered new exit (range 16) 2040 | -7/Factory | Entered another Factory area 2040 | -6/Factory | Evolved 2 slots: Propulsion x1, Weapon x1 2056 | -6/Factory | Lost 7 parts (3n4u) 2076 | -6/Factory | Discovered new exit (range 16) 2085 | -6/Factory | Entered Lower Caves 2103 | -6/Lower Caves | Learned Factory emergency access door positions 2151 | -6/Lower Caves | Encountered a Warlord checkpoint 2199 | -6/Lower Caves | Learned location of 1 exit from Factory 2437 | -6/Lower Caves | Discovered new exit (range 10) 2447 | -6/Lower Caves | Lost 4 parts (1p1n2u) 2454 | -6/Lower Caves | Entered another Lower Caves area 2468 | -6/Lower Caves | Discovered new exit (range 8) 2566 | -6/Lower Caves | Released all parts (3) 2608 | -6/Lower Caves | Core integrity fell below 50% 2609 | -6/Lower Caves | Entered Factory 2609 | -5/Factory | Evolved 2 slots: Utility x2 2610 | -5/Factory | Identified exit to Extension 2816 | -5/Factory | Core integrity fell below 50% 2845 | -5/Factory | Core integrity fell below 20% 2867 | -5/Factory | Destroyed by S-27 Virus with Autogun Last Messages --------------- Penetrated by Slug. K-01 Serf collects debris. ALERT: Security rotation in progress. K-01 Serf cleans the Power Conduit. O-24 Administrator: "IFF HANDSHAKE FAILED. SECURING TERMINAL." K-01 Serf cleans the Power Conduit. Triggered Tiamat Bomb Trap. An explosion rips through the floor. U-05 Engineer destroyed. U-05 Engineer lays Concrete. ALERT: Hostiles spotted, dispatching reinforcements to Terminal F007. U-05 Engineer lays Concrete. Slammed into S-27 Virus. Destabilizing: System corrupted (+2). ALERT: Hostiles spotted, dispatching reinforcements to Terminal F015. Slug penetrates Wall. K-01 Serf cleans the Neutrino Reactor. Map ----- +----------------------------------------------------+ | ? # """ """ """ """ #??????????????????????????? | | # """ """ """ """ #??????????????????????????? | | # #??????????????????????????? | | ### """ """ """ """ ########???????????????????? | | """ """ """ """ #???????????????????? | | """ """ """ """ #???????????????????? | | #???????????????????? | | """"T"""" #???????????????????? | | """"""""""" #???????????????????? | | ######+################# #???????????????????? | | # #????????????# #???????????????????? | | # """ #????????????# s #???????????????????? | | # """ #????????????#ss #???????????????????? | | # """ #????????????# #???????????????????? | | # #????????????# s #???????????????????? | | # """ #????????????# #???????????????????? | | # """ #????????????# #???????????????????? | | # ! """ #????????????# R#???????????????????? | | # #????????????# #???????????????????? | | ###########????????????# #???????????????????? | | ???????????????????????# #???????????????????? | | ???????????????????????# #???????????????????? | | ???????????????????????# #???????????????????? | | ???????????????????????# #???????????????????? | | ???????????????????????# #???????????????????? | | ???????????????????????# @ #???????????????????? | | ???????????????????????# #???????????????????? | | ???????????????????????# #???????????????????? | | ???????????????????????+ +???????????????????? | | ???????????????????????# #???????????????????? | | ???????????????????????# #???????????????????? | | ???????????????????????# k#???????????????????? | | ???????????????????????# ???????????????????? | | ???????????????????????# ??????????????????? | | ???????????????????????# ??????????????????? | | ???????????????????????# ?????????????????? | | ???????????????????????# ?????????????????? | | ???????????????????????######## ????????????????? | | ??????????????????????????????? ????????????????? | | ?????????????????????????????????????????????????? | | ?????????????????????????????????????????????????? | | ?????????????????????????????????????????????????? | | ?????????????????????????????????????????????????? | | ?????????????????????????????????????????????????? | | ?????????????????????????????????????????????????? | | ?????????????????????????????????????????????????? | | ?????????????????????????????????????????????????? | | ?????????????????????????????????????????????????? | | ?????????????????????????????????????????????????? | | ?????????????????????????????????????????????????? | +----------------------------------------------------+ Best States ------------- Heat Dissipation 40 Energy Generation 15 Energy Capacity 250 Matter Stores 300 Matter Capacity 300 Sight Range 16 Terrain Scan Density 10 ECM Strength 2 Additional Mass Support 9 Armor Coverage 160 Evasion (%) 63 Defensive Hacking 10 Item Schematics ----------------- None Robot Schematics ------------------ None Fabricated ------------ Nothing Alien Tech Used ----------------- None Achievements -------------- Close Call I Survived The Infestation Oops System Compromised Unlikely Earthworm Challenges ------------ None Game ------ Seed DroneRocketBay Manual? 0 Play Time 01:06:07 Cumulative 4.1 hours Start 2024.05.07 @ 17:41:34 End 2024.05.07 @ 18:53:10 Sessions 1 Manual Loads 0 Difficulty Rogue Special Mode None Game No. 7 Rogue 7 Adventurer 0 Explorer 0 Win Type - Total 0 Types 0/0/0/0/0/0/0/0/0 Lore% 10 Gallery% 7 Achievement% 8 Wizard Run 0 Options --------- Layout 1 ASCII 0 Keyboard 0 Movement Mouse Keybinds 0 Fullscreen 1 Font 24/Smallcaps Map View 50x35 Zoom Use 0% Tactical HUD 0 Map Filters NONE Filters NONE Steam 1 RUN: f2346450-2c58-4d95-a0a0-876b70538408